bitfinex/quotes_ETHUSD_20241009
["timestamp","ask_amount","ask_price","bid_price","bid_amount"]
[1728513313985,0.822,2371.5,2371.2,4.76719]
[1728513314152,0.822,2371.5,2371.2,6.00222312]
[1728513315998,4.9799,2371.7,2371.2,10.21941312]
[1728513316345,4.9799,2371.7,2371.2,6.00222312]
[1728513317073,4.9799,2371.7,2371.2,10.21941312]
[1728513317587,0.08023798,2371.6,2371.2,10.21941312]
[1728513317975,0.08023798,2371.6,2371.4,0.55]
[1728513318147,0.08023798,2371.6,2371.5,4.76674]
[1728513318351,0.08297826,2371.8,2371.5,4.76674]
[1728513318560,0.08023798,2371.6,2371.5,4.76674]
[1728513318881,0.08297826,2371.8,2371.5,4.76674]
[1728513319087,0.08023798,2371.6,2371.5,4.76674]
[1728513319289,0.08297826,2371.8,2371.5,4.76674]
[1728513319448,0.08023798,2371.6,2371.5,4.76674]
[1728513319647,0.08297826,2371.8,2371.5,4.76674]
[1728513319869,0.08023798,2371.6,2371.5,4.76674]
[1728513320091,0.08297826,2371.8,2371.5,4.76674]
[1728513320458,0.08023798,2371.7,2371.5,4.76674]
[1728513320788,0.08297826,2371.8,2371.5,4.76674]
[1728513320985,0.08023798,2371.6,2371.5,4.76674]
[1728513321187,0.08297826,2371.8,2371.5,5.87280713]
[1728513321392,0.08023798,2371.6,2371.5,5.87280713]
[1728513321688,0.08297826,2371.8,2371.5,1.65606713]
[1728513321852,4.29920826,2371.8,2371.5,0.55]
[1728513322052,0.08023798,2371.7,2371.3,4.76703]
[1728513322465,4.29920826,2371.8,2371.3,4.76703]
[1728513322969,0.08023798,2371.7,2371.5,0.55]
[1728513323160,4.29920826,2371.8,2371.5,0.55]
[1728513323364,0.08023798,2371.6,2371.5,0.55]
[1728513323691,5.23040909,2371.8,2371.5,0.55]
[1728513323853,0.08023798,2371.6,2371.5,0.55]
[1728513324048,4.29920826,2371.8,2371.5,0.55]
[1728513324291,0.08035944,2371.6,2371.5,0.55]
[1728513324788,4.29920826,2371.8,2371.5,0.55]
[1728513324952,0.08035944,2371.6,2371.5,0.55]
[1728513325151,4.29920826,2371.8,2371.5,0.55]
[1728513325354,0.08048091,2371.6,2371.5,0.55]
[1728513325578,4.29920826,2371.8,2371.5,0.55]
[1728513325891,0.08048091,2371.6,2371.5,0.55]
[1728513326389,0.08297826,2371.8,2371.5,1.026682]
[1728513326591,0.08048091,2371.6,2371.5,4.76674]
[1728513326781,0.08297826,2371.8,2371.5,4.76674]
[1728513327487,0.08048091,2371.7,2371.5,4.76674]
[1728513327667,0.08048091,2371.7,2371.5,0.55]
[1728513327865,0.08297826,2371.8,2371.5,0.55]
[1728513328067,0.08048091,2371.6,2371.5,4.76674]
[1728513328400,0.08297826,2371.8,2371.7,8.57638]
[1728513329751,0.08297826,2371.8,2371.7,9.46001212]
[1728513330195,0.08297826,2371.8,2371.7,8.57638]
[1728513331379,0.08297826,2371.8,2371.7,13.90523567]
[1728513331583,3.0751739,2372.7,2372.6,4.21478]
[1728513331799,3.0751739,2372.7,2372.6,4.76478]
[1728513331999,3.0751739,2372.7,2372.6,7.76478]
[1728513332181,12.39734,2373.3,2372.7,4.76451]
[1728513332182,4.21373,2373.2,2372.7,4.76451]
[1728513333069,4.97734,2373.3,2372.9,4.2142]
[1728513333267,0.7637,2373.3,2373.0,4.76404]
[1728513333504,4.97694,2373.5,2373.0,4.76404]
[1728513333666,15.83985572,2373.7,2373.1,4.00333587]
[1728513333667,2.63688572,2373.7,2373.1,4.00333587]
[1728513333873,2.63688572,2373.7,2373.5,4.76308]
[1728513334075,2.63688572,2373.7,2373.5,0.55]
[1728513334993,2.63688572,2373.7,2373.5,5.77556612]
[1728513335194,2.63688572,2373.7,2373.6,0.55]
[1728513335435,2.63688572,2373.7,2373.6,4.763]
[1728513336230,2.63688572,2373.7,2373.6,0.55]
[1728513336771,2.63688572,2373.7,2373.5,0.55]
[1728513337112,2.63688572,2373.7,2373.5,2.70527897]
[1728513337670,2.63688572,2373.7,2373.5,6.91845897]
[1728513337908,2.63688572,2373.7,2373.5,2.70527897]
[1728513338118,2.63688572,2373.7,2373.5,4.76317]
[1728513339007,5.07928032,2373.9,2373.5,4.76317]
[1728513339436,9.29179032,2373.9,2373.5,0.55]
[1728513340002,5.07928032,2373.9,2373.5,0.55]
[1728513340226,5.07928032,2373.9,2373.7,0.55]
[1728513343731,5.07928032,2373.9,2373.7,5.239102]
[1728513345000,5.07928032,2373.9,2373.7,1.026292]
[1728513347053,5.07928032,2373.9,2373.2,4.2137]
[1728513347054,0.1,2372.0,2371.9,1.81502904]
[1728513347354,4.21869,2370.4,2369.8,0.44012423]
[1728513347557,4.76869,2370.4,2369.8,0.44012423]
[1728513347850,7.21976,2369.8,2369.7,6.58014943]
[1728513348073,8.02306,2369.8,2369.7,6.58014943]
[1728513348549,4.22136,2368.9,2368.8,8.03537672]
[1728513348757,16.07228374,2368.9,2368.8,20.44764672]
[1728513349113,16.73561762,2368.9,2368.8,20.44764672]
[1728513349723,16.18561762,2368.9,2368.8,20.44764672]
[1728513349932,16.18561762,2368.9,2368.8,11.9697423]
[1728513349933,16.73561762,2368.9,2368.8,11.9697423]
[1728513350319,4.22279,2368.1,2367.3,1.24]
[1728513350656,0.11012858,2368.1,2367.3,1.24]
[1728513350826,0.11012858,2368.1,2367.3,4.24]
[1728513351162,4.33291858,2368.1,2367.3,4.24]
[1728513351754,4.33291858,2368.1,2367.3,1.24]
[1728513353327,4.33291858,2368.1,2367.3,4.24]
[1728513358945,0.11012858,2368.1,2367.3,4.24]
[1728513359526,0.11012858,2368.1,2367.3,8.46409]
[1728513359731,0.11012858,2368.1,2367.7,4.58314122]
[1728513360140,4.22196,2368.6,2367.8,0.08445694]
[1728513360342,0.10034167,2368.1,2368.0,0.6694961]
[1728513360548,8.444,2368.6,2368.0,0.6694961]
[1728513360772,0.10034167,2368.1,2368.0,0.6694961]
[1728513360971,4.22196,2368.6,2368.0,0.6694961]
[1728513361137,0.10034167,2368.1,2368.0,0.6694961]
[1728513361337,4.22196,2368.6,2368.0,0.6694961]
[1728513361561,4.22196,2368.6,2368.1,0.55]
[1728513361975,4.2216,2368.8,2368.1,0.55]
[1728513361976,4.2216,2368.8,2368.2,35.0]
[1728513362482,4.2216,2368.8,2368.3,0.55]
[1728513362483,0.10034167,2368.7,2368.3,0.55]
[1728513362649,4.22159,2368.8,2368.3,0.55]
[1728513362846,0.10034167,2368.7,2368.3,0.55]
[1728513363061,4.22159,2368.8,2368.4,35.0]
[1728513363259,0.10034167,2368.7,2368.4,35.0]
[1728513363580,4.22159,2368.8,2368.4,35.0]
[1728513363951,4.22258,2368.3,2368.0,0.1194961]
[1728513364156,4.22263,2368.2,2368.0,0.1194961]
[1728513364571,0.422159,2368.8,2368.0,0.1194961]
[1728513364880,4.22279,2368.1,2368.0,0.1194961]
[1728513365079,0.10034167,2368.1,2368.0,0.1194961]
[1728513365835,4.32313167,2368.1,2368.0,0.1194961]
[1728513366178,5.17771184,2368.1,2368.0,0.1194961]
[1728513367586,0.10034167,2368.1,2368.0,0.1194961]
[1728513368976,0.10034167,2368.1,2368.0,0.6694961]
[1728513369245,0.10034167,2368.1,2368.0,4.8924661]
[1728513369646,4.22165,2368.8,2368.1,4.77265]
[1728513369981,0.09697937,2368.7,2368.1,4.85709702]
[1728513370181,0.09697937,2368.7,2368.1,5.77705333]
[1728513370382,0.09697937,2368.7,2368.1,5.69260631]
[1728513370587,0.09697937,2368.7,2368.1,40.69260631]
[1728513370887,0.09697937,2368.7,2368.2,5.02188]
[1728513371045,4.2209,2369.2,2368.5,4.22198]
[1728513371387,11.73517734,2369.1,2368.5,0.477198]
[1728513371558,11.73517734,2369.1,2368.4,8.44425]
[1728513371760,7.51412734,2369.1,2368.5,4.22206]
[1728513372087,7.51412734,2369.1,2368.7,4.22162]
[1728513372288,0.09412734,2369.1,2368.8,4.22154]
[1728513372460,8.44117,2369.4,2368.7,4.22161]
[1728513372661,0.09442602,2369.3,2368.7,4.22161]
[1728513372868,4.31509602,2369.3,2368.7,4.22161]
[1728513373068,0.09442602,2369.3,2368.8,4.77137]
[1728513373245,4.22049,2369.4,2368.8,4.77137]
[1728513373577,4.3148034,2369.3,2368.8,4.77137]
[1728513373887,4.3148034,2369.3,2368.7,4.77169]
[1728513374453,0.0941434,2369.3,2368.8,4.22154]
[1728513374649,0.0941434,2369.3,2369.0,4.22118]
[1728513374848,7.42,2369.5,2369.0,4.22118]
[1728513375080,0.09353882,2369.4,2369.0,4.22118]
[1728513375460,0.09353882,2369.4,2368.8,4.22145]
[1728513375665,4.31402882,2369.4,2368.8,4.22145]
[1728513376047,4.31402882,2369.4,2368.8,8.44286]
[1728513376793,8.53464882,2369.4,2368.8,4.22141]
[1728513376961,4.22083,2369.3,2368.7,0.55]
[1728513377163,4.2211,2369.1,2368.7,0.55]
[1728513377596,4.22096,2369.2,2368.7,0.55]
[1728513377805,8.87332988,2369.2,2368.7,0.55]
[1728513378106,4.22104,2369.1,2368.7,0.55]
[1728513378396,8.87337988,2369.2,2368.7,0.55]
[1728513378577,4.22113,2369.1,2368.7,0.55]
[1728513378780,4.65237988,2369.2,2368.7,0.55]
[1728513378982,4.65237988,2369.2,2368.6,8.44357]
[1728513379299,0.55873579,2369.1,2367.9,4.58314122]
[1728513379500,4.22183,2368.7,2368.0,4.3424161]
[1728513379665,0.09348608,2368.6,2368.0,4.3424161]
[1728513379864,0.09348608,2368.6,2368.0,0.1194961]
[1728513379865,4.22208,2368.5,2368.0,0.1194961]
[1728513380076,8.44427,2368.5,2368.0,0.1194961]
[1728513380277,4.31575608,2368.4,2368.0,0.1194961]
[1728513380524,0.09348608,2368.4,2368.0,0.1194961]
[1728513380696,0.09348608,2368.4,2368.0,4.3424461]
[1728513381004,0.09348608,2368.4,2368.1,4.22278]
[1728513381504,0.09348608,2368.3,2368.2,4.22259]
[1728513381804,0.09348608,2368.3,2368.1,4.22269]
[1728513381805,4.22203,2368.6,2368.1,4.22269]
[1728513382006,0.09348608,2368.3,2368.1,4.22269]
[1728513382203,5.066415,2368.6,2368.1,4.22269]
[1728513382676,0.09348608,2368.5,2368.1,4.22269]
[1728513383068,4.31559608,2368.5,2368.0,4.3424561]
[1728513383306,0.09348608,2368.5,2368.0,4.3424561]
[1728513383526,0.09348608,2368.5,2368.1,4.2227]
[1728513384011,0.09348608,2368.5,2368.3,4.22233]
[1728513384387,4.22156,2368.8,2368.3,4.22233]
[1728513384617,0.08971087,2368.4,2368.3,4.22233]
[1728513385207,5.83271271,2368.8,2368.3,4.22233]
[1728513385383,0.08971087,2368.4,2368.0,4.3423461]
[1728513385703,0.08971087,2368.3,2368.2,4.2226]
[1728513386072,5.83271271,2368.8,2368.2,4.2226]
[1728513386267,0.08971087,2368.7,2368.1,4.22276]
[1728513386500,0.08971087,2368.7,2368.3,4.22234]
[1728513386683,5.83271271,2368.8,2368.2,4.22254]
[1728513386883,0.08971087,2368.7,2368.3,4.22235]
[1728513387207,5.83271271,2368.8,2368.3,4.22235]
[1728513387364,0.08971087,2368.6,2368.3,4.22235]
[1728513387567,5.83271271,2368.8,2368.3,4.22235]
[1728513387766,0.08971087,2368.5,2368.3,4.22235]
[1728513388002,5.83271271,2368.8,2368.3,4.22235]
[1728513388220,0.08971087,2368.4,2368.3,4.22235]
[1728513388378,5.83271271,2368.8,2368.3,4.22235]
[1728513388580,0.08971087,2368.4,2368.3,4.22235]
[1728513388780,7.42,2368.9,2368.4,4.22223]
[1728513389016,11.64137,2368.9,2368.4,4.22223]
[1728513389226,7.42,2368.9,2368.4,8.44437]
[1728513389514,17.43263,2369.0,2368.4,8.44437]
[1728513389515,13.2113,2369.0,2368.4,8.44437]
[1728513389717,17.43263,2369.0,2368.4,8.44437]
[1728513389917,13.2113,2369.0,2368.5,4.22199]
[1728513390123,4.2213,2369.0,2368.5,4.22199]
[1728513390479,4.2213,2369.0,2368.4,4.22214]
[1728513390702,4.22139,2368.9,2368.4,8.44428]
[1728513390929,4.2213,2369.0,2368.5,4.22207]
[1728513391481,7.42,2369.3,2368.7,4.22157]
[1728513391704,13.21062,2369.4,2368.9,4.22136]
[1728513391705,8.99,2369.4,2368.9,4.22136]
[1728513392003,8.99,2369.4,2369.1,4.22099]
[1728513392213,4.22013,2369.6,2369.1,5.4609]
[1728513392524,0.08982839,2369.5,2369.1,5.4609]
[1728513392922,0.08982839,2369.5,2369.1,1.24]
[1728513393126,11.63969,2369.9,2369.4,4.22036]
[1728513393308,0.08999876,2369.8,2369.6,4.22008]
[1728513393507,4.21958,2370.0,2369.6,4.22008]
[1728513393820,0.09032763,2369.9,2369.6,4.22002]
[1728513393979,0.09032763,2369.9,2369.7,4.21981]
[1728513394185,4.21925,2370.1,2369.6,4.22002]
[1728513394683,0.09032763,2370.0,2369.6,4.22002]
[1728513395427,4.30973763,2370.0,2369.4,4.22036]
[1728513395666,4.2196,2369.9,2369.4,4.22036]
[1728513395838,4.31126445,2369.8,2369.4,4.22036]
[1728513396033,0.09148445,2369.8,2369.4,4.22036]
[1728513396233,4.21941,2370.0,2369.4,4.22036]
[1728513396459,8.860871,2370.0,2369.5,4.22029]
[1728513396657,0.421941,2370.0,2369.4,4.2204]
[1728513396848,12.50788052,2370.3,2369.8,4.21971]
[1728513397370,4.21905,2370.2,2369.6,4.21999]
[1728513397557,4.21931,2370.1,2369.6,4.21999]
[1728513398353,4.21905,2370.2,2369.6,4.21999]
[1728513398556,0.50879705,2370.1,2369.7,4.21994]
[1728513398759,0.86892052,2370.3,2369.9,4.21949]
[1728513400485,0.86892052,2370.3,2370.0,4.21929]
[1728513400654,0.86892052,2370.3,2370.1,4.21913]
[1728513402172,0.86892052,2370.3,2369.9,4.21957]
[1728513402391,4.2187,2370.4,2369.9,4.21957]
[1728513402586,4.2187,2370.4,2370.0,4.21937]
[1728513402587,1.143715,2370.4,2370.0,4.21937]
[1728513403354,5.362455,2370.4,2369.9,8.43905]
[1728513403554,1.143715,2370.4,2370.0,4.21932]
[1728513406361,5.362455,2370.4,2369.9,8.43891]
[1728513407122,1.143715,2370.4,2370.0,4.21931]
[1728513407270,1.143715,2370.4,2370.1,4.21922]
[1728513407474,0.0918776,2370.3,2370.1,4.21913]
[1728513407673,11.63831,2370.7,2370.2,4.21894]
[1728513407674,7.42,2370.7,2370.2,4.21894]
[1728513407875,0.0918776,2370.6,2370.3,4.21877]
[1728513408121,0.0918776,2370.6,2370.2,4.21894]
[1728513408122,0.0918776,2370.6,2370.5,4.21851]
[1728513408405,9.16470811,2371.1,2370.6,4.21816]
[1728513408406,11.63753,2371.1,2370.6,4.21816]
[1728513410654,4.30971533,2371.0,2370.5,8.4368]
[1728513410773,4.30971533,2371.0,2370.6,4.21833]
[1728513414180,0.09206533,2371.0,2370.7,4.21816]
[1728513414603,4.21754,2371.1,2370.7,4.21816]
[1728513414804,0.09222368,2370.9,2370.7,4.21816]
[1728513415124,0.09222368,2370.8,2370.7,4.21816]
[1728513415437,4.21754,2371.1,2370.6,4.21833]
[1728513415932,4.30986368,2371.0,2370.6,4.21833]
[1728513417337,0.94494805,2371.0,2370.4,1.24]
[1728513417543,5.16268805,2371.0,2370.4,1.24]
[1728513417749,4.30996368,2371.0,2370.6,4.21833]
[1728513418306,8.52769368,2371.0,2370.6,4.21833]
[1728513418658,4.21783,2370.9,2370.5,4.21851]
[1728513418801,4.21783,2370.9,2370.4,9.67717]
[1728513419135,0.09242901,2370.8,2370.4,9.67717]
[1728513420135,0.09242901,2370.8,2370.7,4.97016]
[1728513420358,4.21702,2371.4,2371.0,4.21758]
[1728513420503,4.21702,2371.4,2370.9,4.21778]
[1728513420838,8.29191631,2371.5,2370.9,4.21778]
[1728513420839,4.21709,2371.3,2370.9,4.21778]
[1728513421340,0.87191631,2371.1,2370.7,4.97008]
[1728513421500,0.87191631,2371.1,2370.5,0.55]
[1728513421501,5.08956631,2371.0,2370.5,3.55]
[1728513421701,4.21765,2371.0,2370.5,3.55]
[1728513422471,0.87191631,2371.1,2370.6,4.21833]
[1728513422612,4.31050494,2370.9,2370.4,6.22108]
[1728513422817,4.2179,2370.9,2370.4,6.22108]
[1728513423127,0.09260494,2370.8,2370.5,4.21843]
[1728513423512,0.09260494,2370.8,2370.6,4.21822]
[1728513423716,0.87191631,2371.0,2370.9,4.2178]
[1728513423941,0.87191631,2371.0,2370.8,4.21795]
[1728513423942,0.96443329,2371.0,2370.8,4.21795]
[1728513424553,0.96443329,2371.0,2370.8,4.21786]
[1728513425051,0.96443329,2371.0,2370.7,7.76816]
[1728513425346,0.96443329,2371.0,2370.8,4.21796]
[1728513425532,0.09251698,2371.0,2370.8,4.21796]
[1728513425738,0.09251698,2371.0,2370.9,4.2178]
[1728513426058,0.87662396,2371.3,2371.0,4.21745]
[1728513426256,0.87662396,2371.3,2371.1,4.21742]
[1728513426613,0.87662396,2371.4,2371.2,4.21727]
[1728513427147,8.99,2371.6,2371.2,4.21727]
[1728513427148,0.87662396,2371.5,2371.2,4.21727]
[1728513427457,0.87662396,2371.5,2371.1,4.21742]
[1728513427748,5.09343396,2371.5,2371.1,4.21742]
[1728513427951,5.09343396,2371.5,2371.1,8.43477]
[1728513427952,0.87662396,2371.5,2371.1,8.43477]
[1728513428310,0.87662396,2371.5,2371.1,4.21735]
[1728513429167,0.87662396,2371.5,2371.2,4.21724]
[1728513429470,11.18057103,2371.6,2371.2,4.21724]
[1728513429773,15.39715103,2371.6,2371.2,4.21724]
[1728513430182,0.87613758,2371.5,2371.1,4.21743]
[1728513432358,5.09288758,2371.5,2371.1,4.21743]
[1728513432758,5.09237414,2371.5,2371.1,4.21743]
[1728513433483,5.09237414,2371.5,2371.1,8.43477]
[1728513433484,0.87562414,2371.5,2371.1,8.43477]
[1728513433640,9.86562414,2371.6,2371.2,4.21709]
[1728513434683,14.08219414,2371.6,2371.2,4.21709]
[1728513434870,8.99,2371.5,2371.2,4.21709]
[1728513435067,8.99,2371.5,2371.1,5.2637946]
[1728513435287,9.86562414,2371.5,2371.1,5.2637946]
[1728513436285,8.99,2371.5,2371.1,5.2637946]
[1728513436786,9.86562414,2371.5,2371.1,5.2637946]
[1728513437014,8.99,2371.5,2371.2,4.21727]
[1728513437280,0.87562414,2371.5,2371.2,4.21727]
[1728513437648,0.09312678,2371.4,2371.2,4.21727]
[1728513438266,14.08202888,2371.6,2371.1,4.21743]
[1728513438476,0.09312678,2371.3,2371.1,4.21743]
[1728513438691,4.21676,2371.5,2371.1,4.21743]
[1728513439181,0.09317367,2371.4,2371.1,4.21743]
[1728513441198,0.09317367,2371.4,2370.9,4.4258175]
[1728513441199,4.21719,2371.3,2370.9,4.4258175]
[1728513441497,4.21775,2371.0,2370.6,1.24]
[1728513441698,4.21816,2370.7,2370.6,1.24]
[1728513441903,5.46177521,2370.7,2370.6,1.24]
[1728513442051,5.55468504,2370.7,2370.6,1.24]
[1728513442585,6.42987287,2370.7,2370.6,1.24]
[1728513442897,6.86743465,2370.7,2370.6,1.24]
[1728513443055,6.8673254,2370.7,2370.6,1.24]
[1728513443453,5.55468504,2370.7,2370.6,1.24]
[1728513444199,4.31106983,2370.7,2370.6,1.24]
[1728513444350,0.09290983,2370.7,2370.6,1.24]
[1728513444555,4.21816,2370.7,2370.6,1.24]
[1728513444751,4.31081177,2370.7,2370.6,1.24]
[1728513445364,0.96770476,2370.7,2370.6,1.24]
[1728513446370,5.18586476,2370.7,2370.6,1.24]
[1728513447803,4.31081177,2370.7,2370.6,1.24]
[1728513449622,5.18585527,2370.7,2370.6,1.24]
[1728513450708,4.31081177,2370.7,2370.6,1.24]
[1728513450912,5.18585527,2370.7,2370.6,1.24]
[1728513451318,6.25749873,2370.7,2370.6,1.24]
[1728513451703,6.69502453,2370.7,2370.6,1.24]
[1728513453142,6.49848756,2370.7,2370.6,1.24]
[1728513453427,5.62338107,2370.7,2370.6,1.24]
[1728513453787,6.4986428,2370.7,2370.6,1.24]
[1728513454014,5.62338107,2370.7,2370.6,1.24]
[1728513454628,6.49866281,2370.7,2370.6,1.24]
[1728513455728,5.62338107,2370.7,2370.6,1.24]
[1728513455956,6.91386874,2370.7,2370.6,1.24]
[1728513456458,8.22654794,2370.7,2370.6,1.24]
[1728513460500,7.78873902,2370.7,2370.6,1.24]
[1728513460767,6.49825135,2370.7,2370.6,1.24]
[1728513461836,5.62338107,2370.7,2370.6,1.24]
[1728513462168,1.40522107,2370.7,2370.6,1.24]
[1728513464167,0.09265177,2370.7,2370.6,1.24]
[1728513464494,4.21801,2370.8,2370.6,1.24]
[1728513464718,0.09198907,2370.7,2370.6,1.24]
[1728513464869,0.09198907,2370.7,2370.6,2.288039]
[1728513465073,0.87487028,2371.2,2370.7,4.76806]
[1728513465273,4.21701,2371.4,2370.9,4.21772]
[1728513465659,4.21701,2371.4,2370.9,8.43541]
[1728513466271,4.21724,2371.3,2370.8,0.7595]
[1728513466474,4.21746,2371.1,2370.8,0.7595]
[1728513467792,0.08939055,2371.0,2370.8,0.7595]
[1728513469278,0.08939055,2371.0,2370.6,1.24]
[1728513469482,4.30711055,2371.0,2370.6,1.24]
[1728513469792,4.21799,2370.8,2370.6,1.24]
[1728513470317,0.08939055,2370.7,2370.6,1.24]
[1728513470699,4.21799,2370.8,2370.6,1.24]
[1728513470884,0.08932591,2370.7,2370.6,1.24]
[1728513471128,4.21799,2370.8,2370.6,1.24]
[1728513471348,0.08932591,2370.7,2370.6,1.24]
[1728513471555,4.21799,2370.8,2370.6,1.24]
[1728513471754,0.08932591,2370.7,2370.6,1.24]
[1728513471922,8.43542,2371.0,2370.6,1.24]
[1728513472256,0.08932591,2370.9,2370.6,1.24]
[1728513473717,0.08932591,2370.9,2370.6,1.88344604]
[1728513473955,0.08932591,2370.9,2370.7,4.21806]
[1728513474158,5.09226838,2371.2,2370.7,4.21806]
[1728513474323,0.08927889,2371.1,2370.8,4.21795]
[1728513475037,0.08927889,2371.1,2370.7,4.21806]
[1728513476278,0.08927889,2371.1,2370.7,5.2024696]
[1728513476438,0.08927889,2371.1,2371.0,0.8315]
[1728513477077,5.09190838,2371.4,2371.0,0.8315]
[1728513477271,0.08927889,2371.1,2370.7,6.0156296]
[1728513477440,4.21736,2371.2,2370.7,6.0156296]
[1728513477640,0.08927889,2371.0,2370.7,6.0156296]
[1728513477875,4.21736,2371.2,2370.7,6.0156296]
[1728513478036,0.08927889,2370.9,2370.7,6.0156296]
[1728513478239,4.21736,2371.2,2370.7,6.0156296]
[1728513478533,4.21736,2371.2,2370.7,9.5656296]
[1728513478739,0.08927889,2371.1,2370.8,4.21786]
[1728513478960,5.09198838,2371.3,2370.9,5.17429696]
[1728513479182,0.08951402,2371.2,2370.9,0.95654696]
[1728513479339,5.09198838,2371.3,2370.9,0.95654696]
[1728513479537,0.08951402,2371.2,2370.8,4.21786]
[1728513479858,5.09198838,2371.3,2370.8,4.21786]
[1728513480057,0.08951402,2371.1,2370.8,4.21786]
[1728513480256,5.09198838,2371.3,2370.8,4.21786]
[1728513480574,4.21745,2371.1,2370.7,0.8132]
[1728513480778,4.30721402,2371.0,2370.6,3.0]
[1728513481644,4.21799,2370.8,2370.4,5.24285042]
[1728513481847,4.21817,2370.7,2370.3,4.21873]
[1728513482039,4.30778981,2370.7,2370.3,4.21873]
[1728513482642,0.08961981,2370.7,2370.4,4.21869]
[1728513482891,0.08961981,2370.7,2370.5,4.21836]
[1728513483057,1.31242591,2370.9,2370.5,8.43688]
[1728513483580,0.08953165,2370.8,2370.5,8.43688]
[1728513483784,0.08953165,2370.8,2370.5,4.21844]
[1728513484589,5.09374809,2371.0,2370.5,4.21844]
[1728513484759,5.09374809,2371.0,2370.5,8.43687]
[1728513484760,0.08953165,2370.9,2370.5,8.43687]
[1728513485089,0.08953165,2370.9,2370.5,5.10431821]
[1728513485267,0.96562974,2370.9,2370.5,5.10431821]
[1728513485597,0.08953165,2370.9,2370.5,5.10431821]
[1728513486091,0.08953165,2370.9,2370.5,9.32275821]
[1728513486274,0.08953165,2370.9,2370.5,5.10431821]
[1728513486484,0.96562974,2370.9,2370.5,5.10431821]
[1728513487555,5.18347974,2370.9,2370.4,4.64068213]
[1728513487796,0.96562974,2370.9,2370.4,4.64068213]
[1728513488088,0.96562974,2370.9,2370.5,4.21844]
[1728513488388,0.87609809,2370.8,2370.5,4.21844]
[1728513488691,6.40864911,2370.9,2370.5,4.21844]
[1728513488854,0.08953165,2370.7,2370.5,4.21844]
[1728513489054,2.19076911,2370.9,2370.5,5.10435221]
[1728513489255,0.08953165,2370.6,2370.5,5.10435221]
[1728513489451,2.19076911,2370.9,2370.5,5.10435221]
[1728513489992,0.08953165,2370.8,2370.5,5.10435221]
[1728513491292,0.87609809,2370.7,2370.5,5.10435221]
[1728513491488,0.96562974,2370.8,2370.5,5.10435221]
[1728513491679,0.87609809,2370.8,2370.5,5.10435221]
[1728513491878,0.08953165,2370.7,2370.5,5.10435221]
[1728513492270,0.87609809,2370.8,2370.5,5.10435221]
[1728513492471,0.08943172,2370.6,2370.5,5.10435221]
[1728513492668,0.87609809,2370.8,2370.5,9.32279221]
[1728513492997,0.87609809,2370.8,2370.5,5.10435221]
[1728513493293,0.08943172,2370.7,2370.5,5.10435221]
[1728513493663,0.87609809,2370.8,2370.7,4.21816]
[1728513493873,1.75375503,2371.0,2370.7,4.21816]
[1728513493874,2.62985312,2371.0,2370.7,4.99216]
[1728513494251,1.75375503,2371.0,2370.8,4.21786]
[1728513494456,1.75375503,2371.0,2370.9,4.2178]
[1728513494669,0.87609809,2371.1,2370.9,4.2178]
[1728513494864,0.87609809,2371.1,2370.9,5.138766]
[1728513495201,0.87609809,2371.1,2370.9,0.920966]
[1728513495879,0.87609809,2371.2,2371.1,0.55]
[1728513496084,2.63022108,2371.4,2371.1,5.59175]
[1728513496285,2.63022108,2371.4,2371.1,1.90019273]
[1728513496483,5.09309809,2371.4,2371.1,0.8243]
[1728513496862,0.87609809,2371.4,2371.1,0.8243]
[1728513497059,0.87609809,2371.4,2371.1,5.04162]
[1728513497329,0.87609809,2371.5,2371.2,4.21717]
[1728513497502,0.08946698,2371.3,2371.1,9.25897]
[1728513497658,0.87609809,2371.5,2371.1,10.29800647]
[1728513497997,0.08946698,2371.2,2371.1,6.63065647]
[1728513498202,0.87609809,2371.5,2371.1,6.63065647]
[1728513498384,5.09286809,2371.5,2370.9,5.34907474]
[1728513498587,5.18261507,2371.4,2370.9,5.34907474]
[1728513500899,0.96556507,2371.4,2371.0,4.21754]
[1728513501339,0.08946698,2371.4,2371.0,4.21754]
[1728513501666,0.96556507,2371.4,2371.0,4.21754]
[1728513501799,0.96556507,2371.4,2371.0,5.25724147]
[1728513502014,0.96556507,2371.4,2371.1,4.21743]
[1728513502324,0.08946698,2371.4,2371.1,4.21743]
[1728513506333,0.08946698,2371.4,2371.2,4.21725]
[1728513506930,0.87609809,2371.5,2371.1,4.21743]
[1728513507137,0.08976668,2371.3,2371.1,9.50172628]
[1728513507440,0.87609809,2371.6,2371.2,4.21727]
[1728513507802,5.09268809,2371.6,2371.2,4.21727]
[1728513508100,0.87609809,2371.5,2371.1,5.28429628]
[1728513508735,0.87609809,2371.5,2371.1,5.28428628]
[1728513509327,0.87609809,2371.5,2371.2,4.84954877]
[1728513512225,0.87609809,2371.5,2371.3,4.21701]
[1728513512428,0.87609809,2371.6,2371.5,4.21674]
[1728513512742,2.19129888,2371.8,2371.5,4.21674]
[1728513513038,1.31520079,2371.8,2371.5,5.59534912]
[1728513513554,0.87609809,2371.9,2371.5,5.59534912]
[1728513513755,0.87609809,2371.9,2371.6,4.21656]
[1728513513920,3.50679949,2372.0,2371.6,4.21656]
[1728513514257,7.72274949,2372.0,2371.6,6.76884263]
[1728513514459,5.09212809,2371.9,2371.6,2.55228263]
[1728513514668,0.87609809,2371.9,2371.4,35.0]
[1728513514812,4.21654,2371.7,2371.3,3.0]
[1728513515012,0.87609809,2371.8,2371.2,4.84957877]
[1728513515013,4.21691,2371.5,2371.2,0.63239877]
[1728513515219,4.217,2371.4,2371.0,4.58314122]
[1728513515956,4.21691,2371.5,2371.0,8.80074122]
[1728513516669,4.21691,2371.5,2371.1,0.55]
[1728513516872,8.43373,2371.5,2371.1,0.55]
[1728513517171,0.87673448,2371.5,2371.1,0.55]
[1728513517335,5.09348448,2371.5,2371.1,0.55]
[1728513517740,4.21697,2371.4,2371.0,8.80074122]
[1728513518040,4.21697,2371.4,2371.0,12.90338948]
[1728513518438,5.09348448,2371.5,2371.0,12.90338948]
[1728513518649,9.31037448,2371.5,2371.0,12.90338948]